lending/lending_fUSD_20241025
["ID","MTS","AMOUNT","RATE_DAILY","PERIOD"]
[340793358,1729835446250,-9357.48631139,0.00014,2]
[340793359,1729835446458,-10401.00682633,0.00014,2]
[340793360,1729835446469,-4570.87516995,0.00014,2]
[340793362,1729835779595,-554.83,0.00011754,2]
[340793363,1729835938878,10000.0,0.00042834,30]
[340793364,1729836204359,-250.0,0.00013219,2]
[340793365,1729836204382,-185.99,0.00013226,2]
[340793366,1729836204402,-250.0,0.0001328,2]
[340793367,1729836204423,-800.0,0.0001329,2]
[340793368,1729836204444,-759.6,0.00013311,2]
[340793369,1729836204464,-23900.0,0.0001337,2]
[340793370,1729836204484,-155.61,0.0001348,2]
[340793371,1729836204505,-150.0,0.00013497,2]
[340793372,1729836204525,-201.75,0.00013524,2]
[340793373,1729836204545,-544.05,0.00013552,2]
[340793376,1729836319333,527.08,0.00011005,2]
[340793377,1729836339493,300.0,0.0002,60]
[340793378,1729836388588,-250.0,0.00012924,2]
[340793379,1729836388621,-527.08,0.00013269,2]
[340793380,1729836388653,-437.19,0.00013552,2]
[340793381,1729836388686,-200.0,0.00013699,2]
[340793382,1729836388719,-452.09,0.00013867,2]
[340793383,1729836388752,-452.09,0.00013871,2]
[340793384,1729836388783,-452.09,0.00013875,2]
[340793385,1729836388814,-452.09,0.00013878,2]
[340793386,1729836388845,-452.09,0.00013882,2]
[340793387,1729836388874,-166.51,0.00013883,2]
[340793388,1729836388904,-452.09,0.00013885,2]
[340793389,1729836388936,-452.09,0.00013889,2]
[340793390,1729836388968,-2130.91533578,0.0001389,2]
[340793391,1729836388983,-250.0,0.0001389,2]
[340793392,1729836388995,-527.08,0.0001389,2]
[340793393,1729836389006,-437.19,0.0001389,2]
[340793394,1729836389018,-200.0,0.0001389,2]
[340793395,1729836389029,-452.09,0.0001389,2]
[340793396,1729836389040,-452.09,0.0001389,2]
[340793397,1729836389055,-452.09,0.0001389,2]
[340793398,1729836389070,-452.09,0.0001389,2]
[340793399,1729836389088,-452.09,0.0001389,2]
[340793400,1729836389099,-166.51,0.0001389,2]
[340793401,1729836389112,-452.09,0.0001389,2]
[340793402,1729836389125,-452.09,0.0001389,2]
[340793403,1729836389139,-1501.93932844,0.0001389,2]
[340793404,1729836389151,-6504.2533,0.0001389,2]
[340793405,1729836389162,-372.07203578,0.00013893,2]
[340793406,1729836463635,250.0,0.0001,2]
[340793407,1729836514817,-300.0,0.00012,2]
[340793408,1729836514846,-490.62,0.00013315,2]
[340793409,1729836514875,-1294.8804,0.0001389,2]
[340793410,1729836514905,-80.01796422,0.00013893,2]
[340793411,1729836514935,-216.87327156,0.00013896,2]
[340793412,1729836514948,-235.21672844,0.00013896,2]
[340793413,1729836514958,-64.78327156,0.00013899,2]
[340793414,1729836514972,-235.21672844,0.00013899,2]
[340793415,1729836514982,-255.40327156,0.000139,2]
[340793416,1729836514993,-1294.8804,0.000139,2]
[340793417,1729836515004,-80.01796422,0.000139,2]
[340793418,1729836515014,-452.09,0.000139,2]
[340793425,1729836559041,75045.56,0.00042821,30]
[340793435,1729836631442,-268.432,0.00013523,2]
[340793439,1729836631814,-4836.80553257,0.00013523,2]
[340793442,1729836631827,-1366.00042613,0.00013523,2]
[340793444,1729836631841,-368.7704374,0.00013523,2]
[340793457,1729836637574,-280.28653073,0.00013523,2]
[340793461,1729836639564,-304.32813226,0.00013523,2]
[340793462,1729836639576,-16475.37694091,0.00013523,2]
[340793463,1729836639586,-7470.16186422,0.000139,2]
[340793464,1729836639596,-791.857,0.000139,2]
[340793465,1729836639605,-158.67635362,0.000139,2]
[340793466,1729836639614,-182.11797445,0.000139,2]
[340793467,1729836639623,-181.2013319,0.000139,2]
[340793468,1729836639633,-213.29578234,0.000139,2]
[340793469,1729836639643,-168.27409619,0.000139,2]
[340793470,1729836639652,-452.09,0.000139,2]
[340793471,1729836639662,-452.09,0.00013904,2]
[340793472,1729836639671,-452.09,0.00013907,2]
[340793473,1729836639680,-452.09,0.00013911,2]
[340793474,1729836639689,-452.09,0.00013915,2]
[340793475,1729836639698,-452.09,0.00013918,2]
[340793476,1729836639708,-452.09,0.00013922,2]
[340793477,1729836639717,-452.09,0.00013926,2]
[340793478,1729836639727,-452.09,0.00013929,2]
[340793479,1729836639736,-452.09,0.00013933,2]
[340793480,1729836639745,-452.09,0.00013936,2]
[340793481,1729836639755,-759.6,0.00013977,2]
[340793482,1729836639764,-1597.35206916,0.00013988,3]
[340793483,1729836639773,-2795.36612103,0.0001399,3]
[340793484,1729836639782,-200.0,0.0001399,2]
[340793485,1729836639791,-8698.4997511,0.00013998,2]
[340793486,1729836639801,-1568.59692841,0.00013998,2]
[340793487,1729836639911,-1626.64709739,0.00013998,2]
[340793488,1729836639920,-6823.35290261,0.00013998,2]
[340793489,1729836639935,-938.227204,0.00013998,2]
[340793516,1729836642727,-41780.26058929,0.00013998,2]
[340793517,1729836642736,-391.62279323,0.00013999,2]
[340793518,1729836642745,-81246.21623255,0.00014,2]
[340793534,1729836645482,-3438.58467691,0.00014,2]
[340793554,1729836645686,-557.03434503,0.00014,2]
[340793574,1729837764083,-150.0,0.00012164,2]
[340793575,1729837764104,-49.03808318,0.00012175,2]
[340793582,1729837831605,-441.32191682,0.00012175,2]
[340793583,1729837831615,-366.66666666,0.00012931,2]
[340793585,1729837831624,-300.0,0.00013031,2]
[340793587,1729837831634,-3161.07937826,0.00013032,2]
[340793590,1729837831685,-1217.12215082,0.00013032,2]
[340793591,1729837831696,-4852.79847092,0.00013032,2]
[340793592,1729837831706,-250.0,0.00013262,2]
[340793593,1729837831715,-250.0,0.00013262,2]
[340793594,1729837831725,-185.99,0.0001333,2]
[340793595,1729837831734,-3961.33464113,0.00013447,2]
[340793596,1729837831764,-2465.45327297,0.00013447,2]
[340793597,1729837831775,-17473.2120859,0.00013447,2]
[340793598,1729837831785,-245.31,0.00013515,2]
[340793599,1729837831794,-633.486,0.0001372,2]
[340793600,1729837831804,-200.0,0.00013781,2]
[340793601,1729837831813,-250.0,0.00013813,2]
[340793602,1729837831823,-500.0,0.00013849,2]
[340793603,1729837831832,-7540.43819778,0.0001389,2]
[340793604,1729837831842,-182.11797445,0.000139,2]
[340793605,1729837831851,-181.2013319,0.000139,2]
[340793606,1729837831860,-381.85519502,0.000139,2]
[340793607,1729837831870,-186.63380953,0.000139,2]
[340793608,1729837831879,-6407.05722914,0.000139,2]
[340793609,1729837831888,-1058.0,0.000139,2]
[340793610,1729837831898,-150.0,0.00013979,2]
[340793611,1729837831907,-20478.57530131,0.0001398,3]
[340793612,1729837831918,-896.67792436,0.0001398,3]
[340793613,1729837831937,-8855.54220389,0.0001398,3]
[340793614,1729837831948,-657.4833942,0.0001398,3]
[340793615,1729837831959,-11353.28321728,0.0001398,3]
[340793628,1729837837955,-2196.0,0.0001398,3]
[340793629,1729837838093,-2000.62944,0.0001398,3]
[340793643,1729837840003,-3119.75000001,0.0001398,3]
[340793644,1729837840080,-19569.57110185,0.0001398,3]
[340793645,1729837840091,-48174.05584515,0.0001399,3]
[340793652,1729837842680,-865.62263669,0.0001399,3]
[340793653,1729837842691,-286.03101933,0.0001399,3]
[340793654,1729837842886,-79712.31398683,0.0001399,3]
[340793655,1729837842896,-391.62279323,0.00013999,2]
[340793656,1729837842905,-43464.16283501,0.00014,2]
[340793662,1729838279105,250.0,0.0001,2]
[340793664,1729839000334,494.16,0.000108,2]
[340793687,1729839032041,-150.0,0.0001152,2]
[340793688,1729839032052,-244.36749052,0.0001153,2]
[340793689,1729839032062,-244.36749052,0.00011715,2]
[340793690,1729839032072,-38.01501896,0.000119,2]
[340793691,1729839032084,-206.35247156,0.000119,2]
[340793692,1729839032093,-300.0,0.00012,2]
[340793693,1729839032103,-1687.781384,0.0001256,2]
[340793694,1729839032114,-250.0,0.00012624,2]
[340793695,1729839032124,-7589.39777743,0.00012625,2]
[340793696,1729839032134,-153.7,0.00012725,2]
[340793697,1729839032145,-250.0,0.00012728,2]
[340793700,1729839032156,-185.99,0.00012728,2]
[340793702,1729839032166,-177.21,0.000128,2]
[340793703,1729839032176,-177.21,0.00012864,2]
[340793704,1729839032185,-1107.01,0.00012871,2]
[340793705,1729839032194,-3074.00700119,0.00012871,2]
[340793707,1729839038006,-427.48381408,0.00012871,2]
[340793713,1729839040221,-2119.2,0.00012871,2]
[340793717,1729839043133,-3735.77918473,0.00012871,2]
[340793718,1729839043143,-683.6,0.00012871,2]
[340793719,1729839043152,-23900.0,0.00012872,2]
[340793720,1729839043162,-150.0,0.00012893,2]
[340793722,1729839043171,-3094.22,0.00012893,2]
[340793723,1729839043180,-1000.0,0.00012918,2]
[340793724,1729839043189,-494.16,0.00013064,2]
[340793725,1729839043199,-417.35,0.00013168,2]
[340793726,1729839043208,-245.31,0.00013313,2]
[340793727,1729839043217,-250.0,0.00013365,2]
[340793728,1729839043229,-324.46,0.00013437,2]
[340793729,1729839043238,-1000.0,0.000136,2]
[340793730,1729839043248,-1000.0,0.000136,2]
[340793731,1729839043258,-455.76,0.00013665,2]
[340793732,1729839043268,-2700.19,0.00013665,2]
[340793733,1729839043277,-2351.43,0.00013699,2]
[340793735,1729839043286,-463.79,0.00013699,2]
[340793737,1729839043295,-1000.0,0.000137,2]
[340793739,1729839043305,-303.6492,0.00013727,2]
[340793741,1729839043313,-506.789,0.00013755,2]
[340793742,1729839043322,-391.7516094,0.00013823,2]
[340793744,1729839043331,-417.35,0.00013826,2]
[340793746,1729839043341,-2450.480738,0.0001386,2]
[340793748,1729839043351,-418.1655,0.00013863,2]
[340793750,1729839043360,-150.0,0.00013889,2]
[340793752,1729839043368,-6786.39437802,0.0001389,2]
[340793754,1729839043377,-10352.7093,0.0001389,2]
[340793756,1729839043386,-10204.0447,0.0001389,2]
[340793758,1729839043395,-168.27409619,0.000139,2]
[340793760,1729839043404,-163.30458333,0.000139,2]
[340793762,1729839043413,-254.57013002,0.000139,2]
[340793764,1729839043421,-182.11797446,0.000139,2]
[340793765,1729839043431,-163.51811723,0.000139,2]
[340793767,1729839043441,-2555.76331074,0.0001398,3]
[340793769,1729839043450,-2129.80275895,0.0001399,3]
[340793771,1729839043459,-4852.01160279,0.0001399,3]
[340793773,1729839043469,-228.52404071,0.0001399,2]
[340793775,1729839043479,-167.83833995,0.00013999,2]
[340793777,1729839043488,-270.48674412,0.00013999,2]
[340793779,1729839043498,-503.0,0.00014,2]
[340793781,1729839043507,-37329.36632097,0.00014,2]
[340793790,1729839046053,-486.728,0.0001399,2]
[340793791,1729839046064,-486.728,0.0001399,2]
[340793792,1729839046074,-486.728,0.0001399,2]
[340793793,1729839046085,-224.76679509,0.0001399,2]
[340793804,1729839395189,175.24,0.00010574,2]
[340793805,1729839455284,994.0,0.00042821,30]
[340793806,1729839594002,-150.0,0.00012788,2]
[340793807,1729839594043,-766.491769,0.000128,2]
[340793808,1729839594084,-366.87,0.00013112,2]
[340793809,1729839594126,-250.0,0.00013112,2]
[340793810,1729839594166,-454.06,0.00013169,2]
[340793811,1729839594205,-250.0,0.00013253,2]
[340793812,1729839594245,-602.769,0.00013369,2]
[340793813,1729839594286,-158.96,0.00013469,2]
[340793814,1729839594425,-2503.1780102,0.00013469,2]
[340793815,1729839594468,-23900.0,0.00013487,2]
[340793816,1729839594510,-402.44,0.00013539,2]
[340793817,1729839594551,-200.0,0.00013591,2]
[340793818,1729839594593,-364.6,0.00013714,2]
[340793819,1729839594633,-500.0,0.00013862,2]
[340793820,1729839594674,-595.611,0.00013862,2]
[340793821,1729839594716,-6915.04080556,0.0001389,2]
[340793822,1729839594755,-755.6101,0.0001389,2]
[340793823,1729839594796,-1000.0,0.0001389,2]
[340793824,1729839594837,-2500.0,0.0001389,2]
[340793825,1729839594877,-150.0,0.00013899,2]
[340793826,1729839594918,-6642.358,0.000139,2]
[340793827,1729839594956,-1956.3806,0.000139,2]
[340793828,1729839594996,-168.27409619,0.000139,2]
[340793829,1729839595043,-163.30458333,0.000139,2]
[340793830,1729839595083,-163.51811723,0.000139,2]
[340793831,1729839595123,-200.0,0.00013922,2]
[340793832,1729839595244,-4852.01160334,0.0001399,3]
[340793833,1729839595287,-270.48674412,0.00013999,2]
[340793834,1729839595328,-509.0,0.00014,2]
[340793835,1729839595370,-3839966.23777856,0.00014,2]
[340793836,1729839595415,-268.60884277,0.00014,2]
[340793837,1729839595457,-602054.1889497,0.00014,2]
[340793838,1729840094916,250.0,0.0001,2]
[340793841,1729840232067,-300.0,0.00012,2]
[340793842,1729840232078,-364.4873889,0.00012417,2]
[340793843,1729840232098,-38.98293976,0.00012417,2]
[340793844,1729840232107,-463.25,0.00012417,2]
[340793845,1729840232116,-326.86,0.00013378,2]
[340793846,1729840232125,-250.0,0.00013471,2]
[340793847,1729840232134,-155.72,0.00013574,2]
[340793848,1729840232143,-250.0,0.00013596,2]
[340793849,1729840232152,-200.0,0.00013699,2]
[340793850,1729840232161,-367.65089162,0.00013728,2]
[340793851,1729840232220,-472.34910838,0.00013728,2]
[340793852,1729840232230,-250.41,0.00013829,2]
[340793853,1729840232239,-1436.3336,0.00013843,2]
[340793854,1729840232248,-1699.89729162,0.000139,2]
[340793855,1729840232259,-4523.63943342,0.000139,2]
[340793856,1729840232269,-500.0,0.000139,2]
[340793857,1729840232278,-5347.5,0.00013942,2]
[340793858,1729840232288,-150.0,0.00013942,2]
[340793859,1729840232297,-525.88198681,0.00013943,2]
[340793860,1729840232308,-2204.70442374,0.00013943,2]
[340793861,1729840232319,-1991.54452793,0.00013943,2]
[340793862,1729840232374,-798.42311563,0.00013943,2]
[340793920,1729840238018,-599.04,0.0001337,2]
[340793921,1729840238120,-6558.67,0.0001337,2]
[340793922,1729840238131,-3209.89301367,0.00013943,2]
[340793923,1729840238143,-29922.61670724,0.00013943,2]
[340793924,1729840238154,-617.49975,0.00013943,2]
[340793925,1729840238165,-1014.26609025,0.00013943,2]
[340793926,1729840238179,-757.258615,0.00013943,2]
[340793927,1729840238209,-561.711231,0.00013943,2]
[340793938,1729840240265,-15214.4326,0.00013943,2]
[340793939,1729840240388,-567.86760244,0.00013943,2]
[340793940,1729840240420,-550.44,0.00013943,2]
[340794038,1729840243107,-759.09514417,0.00013943,2]
[340794039,1729840243298,-946.00647109,0.00013943,2]
[340794040,1729840243309,-48968.57801946,0.00013943,2]
[340794056,1729840433650,201.93,0.00024877,30]
[340794057,1729840976666,634.46,0.00010378,2]
[340794058,1729841202181,150.0,0.000135,3]
[340794059,1729841284902,-150.0,0.00012208,2]
[340794060,1729841284946,-565.23,0.00012237,2]
[340794061,1729841284990,-2751.0,0.00012249,2]
[340794062,1729841285031,-987.0,0.00012266,2]
[340794063,1729841285203,-250.0,0.00012299,2]
[340794064,1729841285245,-250.0,0.00012319,2]
[340794065,1729841285289,-500.0,0.00012325,2]
[340794066,1729841285329,-276.11,0.00012325,2]
[340794067,1729841285369,-2647.81,0.00012377,2]
[340794068,1729841285410,-628.44,0.00012378,2]
[340794069,1729841285451,-300.0,0.0001243,2]
[340794070,1729841285493,-711.93,0.00012431,2]
[340794071,1729841285533,-247.15,0.00012432,2]
[340794072,1729841285573,-250.0,0.00012432,2]
[340794073,1729841285614,-182.77,0.00012445,2]
[340794074,1729841285656,-23900.0,0.00012452,2]
[340794075,1729841285695,-284.57,0.00012454,2]
[340794076,1729841285735,-1204.43,0.00012455,2]
[340794077,1729841285776,-672.0,0.00012463,2]
[340794078,1729841285884,-2520.92,0.00012511,2]
[340794079,1729841285924,-1000.0,0.00012641,2]
[340794080,1729841285964,-634.46,0.00012642,2]
[340794081,1729841286003,-153.87,0.00013186,2]
[340794082,1729841286046,-153.87,0.0001319,2]
[340794083,1729841286086,-153.87,0.00013194,2]
[340794084,1729841286127,-153.87,0.00013198,2]
[340794085,1729841286167,-153.87,0.00013201,2]
[340794086,1729841286208,-318.233,0.00013201,2]
[340794087,1729841286249,-318.233,0.00013201,2]
[340794088,1729841286288,-318.233,0.00013201,2]
[340794089,1729841286329,-318.233,0.00013201,2]
[340794090,1729841286370,-318.233,0.00013201,2]
[340794091,1729841286409,-318.233,0.00013201,2]
[340794092,1729841286449,-318.233,0.00013201,2]
[340794093,1729841286491,-318.233,0.00013201,2]
[340794094,1729841286533,-318.233,0.00013201,2]
[340794095,1729841286575,-318.233,0.00013201,2]
[340794096,1729841286616,-150.0,0.00013204,2]
[340794097,1729841286658,-153.87,0.00013205,2]
[340794098,1729841286708,-153.87,0.00013209,2]
[340794099,1729841286848,-153.87,0.00013213,2]
[340794100,1729841286890,-153.87,0.00013217,2]
[340794101,1729841286932,-153.87,0.00013221,2]
[340794102,1729841286973,-153.87,0.00013225,2]
[340794103,1729841287014,-153.87,0.00013229,2]
[340794104,1729841287056,-153.87,0.00013233,2]
[340794105,1729841287099,-153.87,0.00013236,2]
[340794106,1729841287140,-153.87,0.0001324,2]
[340794107,1729841287182,-153.87,0.00013244,2]
[340794108,1729841287225,-153.87,0.00013248,2]
[340794109,1729841287268,-153.87,0.00013252,2]
[340794110,1729841287311,-860.55,0.00013461,2]
[340794111,1729841287355,-420.0,0.0001364,2]
[340794112,1729841287400,-200.0,0.00013699,2]
[340794113,1729841287447,-209.52,0.00013857,2]
[340794114,1729841287493,-6557.24543129,0.0001389,2]
[340794115,1729841287535,-24789.661,0.00013893,2]
[340794116,1729841287576,-380.660533,0.000139,2]
[340794117,1729841287618,-774.2597,0.000139,2]
[340794118,1729841287659,-163.30458332,0.000139,2]
[340794119,1729841287699,-10150.5449,0.000139,2]
[340794120,1729841287828,-12679.7908988,0.0001399,2]
[340794121,1729841287872,-4226.59696628,0.0001399,2]
[340794122,1729841287912,-41705.8776685,0.00013993,2]
[340794123,1729841287952,-7484.9293839,0.00013993,2]
[340794124,1729841287993,-2715.4009222,0.00013993,2]
[340794125,1729841288033,-222.4158739,0.00013993,2]
[340794126,1729841288073,-195.2311648,0.00013993,2]
[340794127,1729841288113,-317.22333056,0.00013993,2]
[340794128,1729841288153,-6365.9190384,0.00013993,2]
[340794129,1729841288192,-1907.98864354,0.00013999,2]
[340794130,1729841288235,-136621.20861961,0.00014,2]
[340794131,1729841288275,-350.0,0.00014,2]
[340794132,1729841288317,-116969.20511343,0.00014,2]
[340794133,1729841288360,-25359.5817977,0.00014,2]
[340794134,1729841288399,-165.35,0.00014003,2]
[340794135,1729841288438,-328.0,0.00014003,2]
[340794136,1729841288484,-42265.9696628,0.0001401,2]
[340794137,1729841288544,-672.0,0.00014021,2]
[340794138,1729841288604,-152.77211455,0.00014073,2]
[340794139,1729841288661,-860.55,0.00014134,2]
[340794140,1729841288714,-255.0,0.00014314,2]
[340794141,1729841288779,-12679.7908988,0.0001447,2]
[340794142,1729841288835,-29586.178764,0.0001448,2]
[340794143,1729841288891,-559.46113318,0.00014489,2]
[340794144,1729841288942,-228.52404071,0.0001449,2]
[340794145,1729841288997,-50719.1635954,0.0001449,2]
[340794146,1729841289051,-42927.9670678,0.0001449,2]
[340794147,1729841289101,-1991.89017672,0.000145,2]
[340794148,1729841289152,-87863.34048428,0.000145,3]
[340794149,1729841289204,-15523.19525922,0.000145,2]
[340794150,1729841289256,-2430.0,0.000145,2]
[340794151,1729841289308,-860.55,0.00014808,2]
[340794152,1729841289500,-182.11797446,0.000149,2]
[340794153,1729841289541,-168.27409619,0.000149,2]
[340794154,1729841289581,-158.67635362,0.000149,2]
[340794155,1729841289621,-182.78940969,0.000149,2]
[340794156,1729841289661,-336.7014815,0.000149,2]
[340794157,1729841289703,-634.46,0.00014906,2]
[340794158,1729841289748,-4226.59696628,0.00014951,2]
[340794159,1729841289795,-12679.7908988,0.0001496,2]
[340794160,1729841289838,-14309.3223559,0.0001496,2]
[340794161,1729841289882,-14309.3223559,0.0001496,2]
[340794162,1729841289922,-587.0,0.00014967,2]
[340794163,1729841289968,-23848.8705932,0.0001497,2]
[340794164,1729841290008,-43444.8506596,0.0001498,2]
[340794165,1729841290049,-71546.6117796,0.0001498,2]
[340794166,1729841290089,-996.0006,0.00014989,2]
[340794167,1729841290130,-505.0,0.0001499,2]
[340794168,1729841290171,-45183.8236507,0.0001499,2]
[340794169,1729841290214,-46922.7966418,0.0001499,2]
[340794170,1729841290255,-7765.9212637,0.0001499,2]
[340794171,1729841290295,-8046.9131434,0.0001499,2]
[340794172,1729841290336,-8327.9050232,0.0001499,2]
[340794173,1729841290468,-2817.3398411,0.0001499,2]
[340794174,1729841290512,-2919.27876,0.0001499,2]
[340794175,1729841290553,-3021.2176789,0.0001499,2]
[340794176,1729841290594,-230.7655925,0.0001499,2]
[340794177,1729841290634,-239.1153112,0.0001499,2]
[340794178,1729841290674,-247.4650298,0.0001499,2]
[340794179,1729841290716,-202.5603417,0.0001499,2]
[340794180,1729841290756,-209.8895187,0.0001499,2]
[340794181,1729841290798,-217.2186956,0.0001499,2]
[340794182,1729841290838,-6604.902129,0.0001499,2]
[340794183,1729841290878,-6843.8852196,0.0001499,2]
[340794184,1729841290923,-7082.8683101,0.0001499,2]
[340794185,1729841290967,-38158.1929491,0.0001499,2]
[340794186,1729841291006,-151.0,0.0001499,2]
[340794187,1729841291048,-151.0,0.0001499,2]
[340794188,1729841291089,-151.0,0.0001499,2]
[340794189,1729841291128,-1000.0,0.00014999,2]
[340794190,1729841291166,-1000.0,0.00014999,2]
[340794191,1729841291207,-1477445.977503,0.00015,2]
[340794192,1729841291255,-510.24346622,0.00015,2]
[340794193,1729841291296,-478516.90165942,0.00015,2]
[340794194,1729841291421,-25883.29406653,0.00015,2]
[340794195,1729841291466,-151.0,0.00015,2]
[340794196,1729841291506,-151.0,0.00015,2]
[340794197,1729841291547,-151.0,0.00015,2]
[340794198,1729841291586,-285.278391,0.00015,2]
[340794199,1729841291626,-390.573371,0.00015,2]
[340794200,1729841291667,-390.573371,0.00015,2]
[340794201,1729841291706,-390.573371,0.00015,2]
[340794202,1729841291749,-390.573371,0.00015,2]
[340794203,1729841291788,-241.430863,0.00015,2]
[340794204,1729841291829,-673.404152,0.00015,2]
[340794205,1729841291869,-673.404152,0.00015,2]
[340794206,1729841291908,-673.404152,0.00015,2]
[340794207,1729841291947,-673.404152,0.00015,2]
[340794208,1729841291986,-151.0,0.00015,2]
[340794209,1729841292027,-151.0,0.00015,2]
[340794210,1729841292067,-151.0,0.00015,2]
[340794211,1729841292106,-151.0,0.00015,2]
[340794212,1729841292146,-300.0,0.00015068,2]
[340794213,1729841292186,-500.0,0.00015136,2]
[340794214,1729841292229,-150.0,0.00015136,2]
[340794215,1729841292365,-500.0,0.00015136,2]
[340794216,1729841292406,-150.67537837,0.00015136,2]
[340794217,1729841292447,-500.0,0.00015136,2]
[340794218,1729841292489,-150.0,0.00015136,2]
[340794219,1729841292533,-156.45,0.00015342,2]
[340794220,1729841292576,-250.71,0.00015342,2]
[340794221,1729841292618,-155.01,0.00015342,2]
[340794222,1729841292660,-156.06,0.00015342,2]
[340794223,1729841292703,-860.55,0.00015481,2]
[340794224,1729841292745,-433.0,0.00015515,2]
[340794225,1729841292787,-672.0,0.00015579,2]
[340794226,1729841292827,-635.0,0.000156,2]
[340794227,1729841292867,-328.0,0.00015753,2]
[340794228,1729841292906,-17785.63623655,0.000159,2]
[340794229,1729841292945,-400.0,0.00016,2]
[340794230,1729841292985,-860.55,0.00016154,2]
[340794231,1729841293025,-823.0,0.00016423,2]
[340794232,1729841293064,-300.0,0.00016438,2]
[340794233,1729841293104,-561.33,0.00016575,2]
[340794234,1729841293144,-155.13,0.00016712,2]
[340794235,1729841293185,-736.0,0.00016822,2]
[340794236,1729841293314,-672.0,0.00017137,2]
[340794237,1729841293354,-634.46,0.0001717,2]
[340794238,1729841293396,-711.93,0.00017404,2]
[340794239,1729841293436,-328.0,0.00017504,2]
[340794240,1729841293480,-500.0,0.00017876,2]
[340794241,1729841293520,-150.85289306,0.00017876,2]
[340794242,1729841293560,-500.0,0.00017876,2]
[340794243,1729841293603,-500.0,0.00017876,2]
[340794244,1729841293644,-150.0,0.00017876,2]
[340794245,1729841293683,-1125.90943753,0.00018,2]
[340794246,1729841293723,-1024.92403781,0.00018,2]
[340794247,1729841293763,-450.0,0.00018,2]
[340794248,1729841293806,-180.0,0.00018082,2]
[340794249,1729841293846,-1684.09976867,0.000181,2]
[340794250,1729841293886,-272.90643067,0.00018199,2]
[340794251,1729841293924,-2660.13,0.00018356,2]
[340794252,1729841293969,-672.0,0.00018695,2]
[340794253,1729841294010,-6557.24543122,0.0001878,2]
[340794254,1729841294050,-289.06,0.00019151,2]
[340794255,1729841294091,-200.0,0.00019178,2]
[340794256,1729841294131,-200.0,0.00019178,2]
[340794257,1729841294255,-200.0,0.00019178,2]
[340794258,1729841294297,-200.0,0.00019178,2]
[340794259,1729841294338,-196.0,0.00019178,2]
[340794260,1729841294378,-177.29,0.00019178,2]
[340794261,1729841294418,-200.0,0.00019178,2]
[340794262,1729841294460,-328.0,0.00019254,2]
[340794263,1729841294504,-634.46,0.00019434,2]
[340794264,1729841294543,-11508.95646742,0.000199,2]
[340794265,1729841294582,-11508.9564674,0.000199,2]
[340794266,1729841294622,-11508.9564674,0.000199,2]
[340794267,1729841294662,-295.76132496,0.0002,2]
[340794268,1729841294700,-3799.3199985,0.0002,2]
[340794269,1729841294740,-3950.0,0.0002,2]
[340794270,1729841294780,-500.0,0.0002,2]
[340794271,1729841294819,-503.64,0.0002,2]
[340794272,1729841294858,-503.64,0.0002,2]
[340794273,1729841294898,-503.64,0.0002,2]
[340794274,1729841294937,-503.64,0.0002,2]
[340794275,1729841294976,-503.64,0.0002,2]
[340794276,1729841295015,-503.64,0.0002,2]
[340794277,1729841295054,-503.64,0.0002,2]
[340794278,1729841295180,-503.64,0.0002,2]
[340794279,1729841295221,-503.64,0.0002,2]